bitfinex/quotes_BTCUSD_20251202
["timestamp","ask_amount","ask_price","bid_price","bid_amount"]
[1764678703987,0.0022496,87588.0,87587.0,0.24409941]
[1764678704239,0.0022496,87588.0,87587.0,0.26198941]
[1764678705237,0.0022496,87588.0,87587.0,0.60302941]
[1764678706631,0.0002496,87588.0,87587.0,0.60302941]
[1764678713617,0.0002496,87588.0,87587.0,1.00302941]
[1764678714540,0.0002496,87588.0,87587.0,1.00402941]
[1764678714963,0.0002496,87588.0,87587.0,1.00602941]
[1764678715673,0.0002496,87588.0,87587.0,1.00502941]
[1764678716079,0.0002496,87588.0,87587.0,1.00402941]
[1764678716231,0.0002496,87588.0,87587.0,0.60402941]
[1764678716442,0.0002496,87588.0,87587.0,0.60502941]
[1764678718680,0.0002496,87588.0,87587.0,0.60402941]
[1764678719599,0.0002496,87588.0,87587.0,0.60502941]
[1764678721780,0.0002496,87588.0,87587.0,0.00211503]
[1764678722008,0.26917138,87588.0,87587.0,0.00211503]
[1764678722548,0.35492144,87588.0,87587.0,0.00211503]
[1764678722970,0.35492144,87588.0,87587.0,0.00111503]
[1764678723170,0.35492144,87588.0,87587.0,0.00011503]
[1764678723395,0.35592144,87588.0,87587.0,0.00011503]
[1764678723692,0.35492144,87588.0,87587.0,0.00011503]
[1764678724092,0.35892144,87588.0,87587.0,0.00011503]
[1764678724547,0.0042496,87588.0,87587.0,0.00011503]
[1764678724683,0.35892144,87588.0,87587.0,0.00011503]
[1764678724889,0.42144443,87588.0,87587.0,0.00011503]
[1764678725295,0.41744443,87588.0,87587.0,0.00011503]
[1764678725673,0.42044443,87588.0,87587.0,0.00011503]
[1764678726004,0.53207655,87588.0,87587.0,0.00011503]
[1764678726204,0.53607655,87588.0,87587.0,0.00011503]
[1764678726429,0.85907655,87588.0,87587.0,0.00011503]
[1764678726588,2.76504647,87588.0,87587.0,0.00011503]
[1764678726809,2.76904647,87588.0,87587.0,0.00011503]
[1764678727276,2.74044443,87588.0,87587.0,0.00011503]
[1764678728474,2.74544443,87588.0,87587.0,0.00011503]
[1764678729109,2.76348443,87588.0,87587.0,0.00011503]
[1764678730930,2.74544443,87588.0,87587.0,0.00011503]
[1764678731130,2.76348443,87588.0,87587.0,0.00011503]
[1764678733920,2.76348443,87588.0,87542.0,0.00577]
[1764678733921,0.22842001,87558.0,87542.0,0.00577]
[1764678734055,0.25584001,87558.0,87557.0,0.00158208]
[1764678734264,0.27927001,87558.0,87557.0,0.00158208]
[1764678735102,0.28127001,87558.0,87557.0,0.00158208]
[1764678735312,0.341793,87558.0,87557.0,0.00158208]
[1764678735679,0.77775745,87558.0,87557.0,0.00158208]
[1764678736158,2.77775745,87558.0,87557.0,0.00158208]
[1764678736442,0.01142622,87518.0,87511.0,0.01182713]
[1764678736672,0.01624,87512.0,87511.0,0.00051509]
[1764678737119,0.01624,87512.0,87511.0,0.00195185]
[1764678737558,0.03967,87512.0,87511.0,0.00195185]
[1764678739371,0.04067,87512.0,87511.0,0.00195185]
[1764678741492,0.001,87512.0,87511.0,0.03507185]
[1764678741956,0.001,87512.0,87511.0,0.01718185]
[1764678744645,0.001,87512.0,87511.0,0.02314185]
[1764678745272,0.01142582,87521.0,87515.0,0.01142661]
[1764678745472,0.01142595,87520.0,87516.0,0.01142648]
[1764678745667,0.01142582,87521.0,87516.0,0.2399559]
[1764678745929,0.01142582,87521.0,87517.0,0.22852694]
[1764678746199,0.23994387,87521.0,87517.0,0.22852694]
[1764678746814,0.23994387,87521.0,87517.0,0.23995329]
[1764678747022,0.26337387,87521.0,87517.0,0.23995329]
[1764678747418,0.03485595,87520.0,87516.0,0.01142648]
[1764678747625,0.03485595,87520.0,87516.0,0.23995603]
[1764678747824,0.2399378,87523.0,87518.0,0.01142622]
[1764678747982,0.001,87520.0,87518.0,0.01142622]
[1764678748184,0.001,87520.0,87518.0,0.23995028]
[1764678748814,0.23994092,87522.0,87516.0,0.23995571]
[1764678749011,0.001,87520.0,87517.0,0.23995295]
[1764678749185,0.001,87520.0,87517.0,0.01142635]
[1764678749551,0.001,87520.0,87519.0,0.2342918]
[1764678749704,0.001,87520.0,87519.0,0.00577]
[1764678749916,0.09717562,87523.0,87519.0,0.00577]
[1764678750230,0.22851919,87521.0,87519.0,0.00577]
[1764678750435,0.01142595,87520.0,87513.0,0.23996328]
[1764678750634,0.23994499,87521.0,87516.0,0.01142648]
[1764678750839,0.23994596,87520.0,87515.0,0.22852982]
[1764678751051,0.22852455,87518.0,87514.0,0.23995688]
[1764678751472,0.22852455,87518.0,87517.0,0.00124928]
[1764678751688,0.23994666,87520.0,87517.0,0.01267563]
[1764678751900,0.23994666,87520.0,87515.0,0.01142661]
[1764678751901,0.01142609,87519.0,87515.0,0.01142661]
[1764678752106,0.23994749,87520.0,87516.0,0.01142648]
[1764678752302,0.001,87518.0,87516.0,0.01142648]
[1764678752529,0.001,87518.0,87515.0,0.23995683]
[1764678752660,0.001,87518.0,87516.0,0.22852911]
[1764678753170,0.23994974,87519.0,87512.0,0.23996696]
[1764678753405,0.23994516,87520.0,87514.0,0.23995962]
[1764678753585,0.23994303,87521.0,87516.0,0.23995365]
[1764678754058,0.23994562,87520.0,87517.0,0.22852655]
[1764678754287,0.01142595,87520.0,87517.0,0.22852655]
[1764678754534,0.001,87520.0,87518.0,0.22852334]
[1764678754732,0.23994303,87521.0,87518.0,0.22852334]
[1764678754970,0.24094303,87521.0,87517.0,0.23995289]
[1764678755099,0.23994589,87520.0,87516.0,0.23995365]
[1764678755510,0.001,87520.0,87519.0,0.01719609]
[1764678755710,0.08575006,87524.0,87519.0,0.01719609]
[1764678756115,0.001,87521.0,87519.0,0.01719609]
[1764678756514,0.001,87521.0,87520.0,0.22851919]
[1764678757332,0.001,87521.0,87520.0,0.26271919]
[1764678757762,0.011424,87535.0,87530.0,0.01142465]
[1764678757965,0.011424,87535.0,87531.0,0.00616]
[1764678757966,0.23990738,87534.0,87531.0,0.00616]
[1764678758165,0.01142413,87534.0,87531.0,0.00616]
[1764678758334,0.22848786,87532.0,87531.0,0.00616]
[1764678758744,0.011424,87535.0,87532.0,0.22848786]
[1764678758980,0.23990602,87535.0,87532.0,0.22848786]
[1764678759384,0.22848525,87533.0,87531.0,0.00616]
[1764678759784,0.23990452,87535.0,87531.0,0.24607487]
[1764678759984,0.23990352,87537.0,87534.0,0.22848224]
[1764678760523,0.001,87535.0,87533.0,0.23990726]
[1764678760675,0.22948114,87535.0,87532.0,0.23991015]
[1764678760877,0.003,87535.0,87534.0,0.22848264]
[1764678761084,0.001,87535.0,87533.0,0.22848291]
[1764678761327,0.22847744,87536.0,87533.0,0.22848291]
[1764678762263,0.002,87535.0,87534.0,0.22848264]
[1764678762582,0.22846633,87541.0,87538.0,0.01142361]
[1764678762732,0.23988988,87542.0,87538.0,0.22847037]
[1764678763134,0.23988988,87542.0,87538.0,0.23989398]
[1764678763542,0.22846535,87541.0,87538.0,0.23989398]
[1764678763747,0.00038317,87541.0,87539.0,0.22846796]
[1764678764088,0.00038317,87541.0,87540.0,0.24530778]
[1764678764741,0.00138317,87541.0,87540.0,0.24530778]
[1764678765176,0.00038317,87541.0,87540.0,0.24530778]
[1764678765493,0.00138317,87541.0,87540.0,0.24530778]
[1764678767615,0.00138317,87541.0,87540.0,0.0005308]
[1764678767958,0.00138317,87541.0,87540.0,0.22899778]
[1764678768363,0.00138317,87541.0,87540.0,0.0005308]
[1764678768866,0.00138317,87541.0,87540.0,0.22899778]
[1764678770705,0.00138317,87541.0,87540.0,0.0005308]
[1764678771288,0.00138317,87541.0,87540.0,0.22899778]
[1764678771488,0.00138317,87541.0,87540.0,0.0005308]
[1764678771728,0.26877754,87541.0,87540.0,0.0005308]
[1764678773944,0.36994815,87541.0,87540.0,0.0005308]
[1764678774141,0.26877754,87541.0,87540.0,0.0005308]
[1764678774480,2.26877754,87541.0,87540.0,0.0005308]
[1764678775292,2.26777754,87541.0,87540.0,0.0005308]
[1764678775500,2.26977754,87541.0,87540.0,0.0005308]
[1764678778556,2.65530053,87541.0,87540.0,0.0005308]
[1764678778752,2.83631729,87541.0,87540.0,1e-08]
[1764678778932,0.22854008,87512.0,87511.0,0.0004]
[1764678779132,0.36482014,87512.0,87511.0,0.0004]
[1764678780195,0.36682014,87512.0,87511.0,0.00051509]
[1764678780405,0.36482014,87512.0,87511.0,0.00051509]
[1764678780806,0.36682014,87512.0,87511.0,0.00051509]
[1764678781214,0.36782014,87512.0,87511.0,0.00051509]
[1764678783039,0.003,87512.0,87511.0,0.01682509]
[1764678783425,0.003,87512.0,87511.0,0.00051509]
[1764678783851,0.26947008,87512.0,87511.0,0.00051509]
[1764678784061,0.22853002,87516.0,87511.0,0.00051509]
[1764678784062,0.01142648,87516.0,87511.0,0.00051509]
[1764678784266,0.001,87512.0,87511.0,0.24048491]
[1764678784474,0.002,87512.0,87511.0,0.01194222]
[1764678784684,0.01142661,87515.0,87511.0,0.00142097]
[1764678784685,0.22853747,87513.0,87511.0,0.00142097]
[1764678784884,0.22853747,87513.0,87511.0,0.00051509]
[1764678785094,0.22954008,87512.0,87511.0,0.00051509]
[1764678786069,0.001,87512.0,87511.0,0.00051509]
[1764678786285,0.22854008,87512.0,87511.0,0.00051509]
[1764678786897,0.22853747,87513.0,87511.0,0.00051509]
[1764678787207,0.001,87512.0,87511.0,0.00051509]
[1764678787877,0.22854008,87512.0,87511.0,0.00051509]
[1764678788412,0.22953857,87513.0,87511.0,0.00051509]
[1764678788413,0.001,87513.0,87512.0,0.22854008]
[1764678788662,0.001,87513.0,87512.0,0.24502008]
[1764678789081,0.001,87513.0,87512.0,0.26291008]
[1764678789284,0.25152324,87528.0,87512.0,0.26291008]
[1764678789285,0.01808,87527.0,87524.0,0.228508]
[1764678789483,0.01142504,87527.0,87523.0,0.01142556]
[1764678790015,0.22851761,87521.0,87516.0,0.01142648]
[1764678790144,0.31427421,87519.0,87515.0,0.23995855]
[1764678790346,0.08575006,87519.0,87515.0,0.23995855]
[1764678790581,0.02267,87518.0,87516.0,0.23995585]
[1764678790991,0.02267,87518.0,87517.0,0.22852702]
[1764678791567,0.03917,87518.0,87515.0,0.01142661]
[1764678791749,0.26769665,87518.0,87515.0,0.23995849]
[1764678792193,0.22853747,87513.0,87511.0,0.00051509]
[1764678792388,0.0165,87512.0,87511.0,0.00051509]
[1764678792813,0.26771008,87512.0,87511.0,0.00051509]
[1764678794421,0.26971008,87512.0,87511.0,0.00051509]
[1764678794627,0.27071008,87512.0,87511.0,0.00051509]
[1764678805460,0.24962008,87512.0,87511.0,0.00051509]
[1764678805618,0.23154008,87512.0,87511.0,0.00051509]
[1764678805957,0.23154008,87512.0,87511.0,0.00142097]
[1764678806162,0.22954008,87512.0,87511.0,0.00142097]
[1764678806310,0.22854008,87512.0,87511.0,0.00142097]
[1764678806697,0.22954008,87512.0,87511.0,0.00142097]
[1764678806902,0.001,87512.0,87511.0,0.22996366]
[1764678807850,0.001,87512.0,87511.0,0.58733366]
[1764678808048,0.01142452,87531.0,87520.0,0.01142595]
[1764678808334,0.01142478,87529.0,87522.0,0.01142569]
[1764678808634,0.01142478,87529.0,87517.0,0.22852674]
[1764678808635,2.29106307,87512.0,87511.0,0.00051509]
[1764678808807,2.35034581,87512.0,87511.0,0.00051509]
[1764678808950,2.37301581,87512.0,87511.0,0.00051509]
[1764678809148,2.37301581,87512.0,87511.0,0.00142097]
[1764678810015,2.37701581,87512.0,87511.0,0.00142097]
[1764678810410,2.37801581,87512.0,87511.0,0.00142097]
[1764678812522,2.49324177,87512.0,87511.0,0.00142097]
[1764678813854,2.37801581,87512.0,87511.0,0.00142097]
[1764678826953,2.70101581,87512.0,87511.0,0.00142097]
[1764678827151,2.65264568,87511.0,87510.0,9.7e-07]
[1764678827332,2.67730842,87511.0,87510.0,9.745e-05]
[1764678828641,2.68130842,87511.0,87510.0,9.745e-05]
[1764678828846,2.68230842,87511.0,87510.0,9.745e-05]
[1764678829028,2.79753438,87511.0,87510.0,9.745e-05]
[1764678830080,2.68230842,87511.0,87510.0,9.745e-05]
[1764678830400,2.68230842,87511.0,87479.0,0.01143131]
[1764678830401,0.01143066,87484.0,87480.0,0.01143118]
[1764678830604,0.2286159,87483.0,87480.0,0.01154614]
[1764678830897,0.22861871,87482.0,87480.0,0.22873853]
[1764678831086,0.22861385,87484.0,87481.0,0.22861897]
[1764678831584,0.22861607,87483.0,87481.0,0.22861897]
[1764678831813,0.24004686,87483.0,87480.0,0.2411697]
[1764678832792,0.24004686,87483.0,87480.0,0.2297382]
[1764678832994,0.24004686,87483.0,87482.0,0.00090632]
[1764678833195,0.02069053,87485.0,87482.0,0.00090632]
[1764678833421,0.22861845,87482.0,87481.0,0.001]
[1764678833675,0.22861845,87482.0,87480.0,0.00011496]
[1764678833874,0.22862107,87481.0,87480.0,0.00111496]
[1764678834086,0.22862107,87481.0,87480.0,0.00011496]
[1764678834295,0.03410066,87484.0,87482.0,0.228618]
[1764678834495,0.25128375,87484.0,87480.0,0.24016926]
[1764678834854,0.02267,87484.0,87481.0,0.22861883]
[1764678835063,0.26271568,87484.0,87480.0,0.01254614]
[1764678835258,0.22862032,87482.0,87480.0,0.00111496]
[1764678835791,0.02267,87483.0,87481.0,0.22862107]
[1764678836433,0.02267,87483.0,87482.0,0.22861845]
[1764678836635,0.02267,87483.0,87480.0,0.01254614]
[1764678836850,0.02267,87483.0,87482.0,0.22861845]
[1764678837246,0.02267,87483.0,87481.0,0.22862107]
[1764678837676,0.02267,87483.0,87482.0,0.22861845]
[1764678837844,0.02267,87483.0,87481.0,0.22862107]
[1764678838051,0.01591,87482.0,87481.0,0.22862107]
[1764678838255,0.01591,87482.0,87480.0,0.00011496]
[1764678838454,0.01591,87482.0,87480.0,0.22873654]
[1764678838648,0.01591,87482.0,87481.0,0.22862107]
[1764678839101,0.01591,87482.0,87481.0,0.22955865]
[1764678839623,0.00926,87485.0,87482.0,0.22861661]
[1764678839891,0.02069053,87485.0,87481.0,0.01143105]
[1764678840096,0.22861522,87484.0,87481.0,0.24005123]
[1764678840316,0.22861801,87483.0,87480.0,0.24016772]
[1764678840521,0.22861773,87483.0,87480.0,0.24016772]
[1764678840709,0.22861759,87483.0,87480.0,0.24016772]
[1764678841147,0.22861759,87483.0,87480.0,0.00011496]
[1764678841148,0.22862107,87481.0,87480.0,0.00011496]
[1764678841357,0.24453107,87481.0,87480.0,0.00011496]
[1764678841601,0.26720107,87481.0,87480.0,0.00011496]
[1764678842425,0.2285867,87495.0,87480.0,0.01658496]
[1764678842575,0.45766967,87500.0,87485.0,0.01143053]
[1764678842576,0.02068935,87494.0,87485.0,0.01143053]
[1764678842922,0.08575006,87486.0,87482.0,0.01143092]
[1764678843175,0.08575006,87486.0,87480.0,0.00011496]
[1764678843176,0.02734,87483.0,87480.0,0.00011496]
[1764678843391,0.01791,87481.0,87480.0,0.00011496]
[1764678843628,0.24453107,87481.0,87480.0,0.00011496]
[1764678843882,0.01691,87481.0,87480.0,0.00011496]
[1764678844297,0.26820107,87481.0,87480.0,0.00011496]
[1764678844619,0.03858,87481.0,87480.0,0.00011496]
[1764678845046,0.26720107,87481.0,87480.0,0.00011496]
[1764678845467,0.26720107,87481.0,87480.0,0.00108381]
[1764678845926,0.26820107,87481.0,87480.0,0.00108381]
[1764678846342,0.28628107,87481.0,87480.0,0.00108381]
[1764678848709,0.01908,87481.0,87480.0,0.00108381]
[1764678848869,0.001,87481.0,87480.0,0.22970749]
[1764678849487,0.001,87481.0,87480.0,0.00108381]
[1764678851674,0.22962107,87481.0,87480.0,0.00108381]
[1764678851894,0.001,87481.0,87480.0,0.00108381]
[1764678852115,0.001,87481.0,87480.0,0.22970749]
[1764678854352,0.001,87481.0,87480.0,0.00108381]
[1764678854544,0.22962107,87481.0,87480.0,0.00108381]
[1764678855062,0.001,87481.0,87480.0,0.22970749]
[1764678856458,0.001,87481.0,87480.0,0.00108381]
[1764678856694,0.001,87481.0,87480.0,0.22970749]
[1764678857089,0.001,87481.0,87480.0,0.00108381]
[1764678858230,0.001,87481.0,87480.0,0.22970749]
[1764678858428,0.001,87481.0,87480.0,0.00108381]
[1764678858638,0.22962107,87481.0,87480.0,0.00108381]
[1764678858843,0.27041107,87481.0,87480.0,0.00108381]
[1764678870436,0.29510406,87481.0,87480.0,0.00108381]
[1764678872230,0.29410406,87481.0,87480.0,0.00108381]
[1764678872639,0.29610406,87481.0,87480.0,0.00108381]
[1764678872902,0.29510406,87481.0,87480.0,0.00108381]
[1764678873235,0.29710406,87481.0,87480.0,0.00108381]
[1764678873452,0.29510406,87481.0,87480.0,0.00108381]
[1764678873855,0.29610406,87481.0,87480.0,0.00108381]
[1764678874206,2.75589319,87481.0,87480.0,0.00108381]
[1764678874378,2.794171,87481.0,87480.0,0.00108381]
[1764678874781,2.83423268,87481.0,87480.0,0.00108381]
[1764678874983,2.83323268,87481.0,87480.0,0.00108381]
[1764678875369,2.75589319,87481.0,87480.0,0.00108381]
[1764678875748,2.75289319,87481.0,87480.0,0.00108381]
[1764678875912,2.75689319,87481.0,87480.0,0.00108381]
[1764678876495,2.75689319,87481.0,87470.0,0.0004]
[1764678876496,2.29117019,87471.0,87470.0,0.0004]
[1764678876697,2.361598,87471.0,87470.0,0.0004]
[1764678876896,2.385468,87471.0,87470.0,0.0004]
[1764678877099,2.385468,87471.0,87470.0,0.00071262]
[1764678878457,2.388468,87471.0,87470.0,0.00071262]
[1764678878633,2.386468,87471.0,87470.0,0.00071262]
[1764678879040,2.389468,87471.0,87470.0,0.00071262]
[1764678879859,2.47521806,87471.0,87470.0,0.00071262]
[1764678880661,2.59044402,87471.0,87470.0,0.00071262]
[1764678883079,0.2286995,87451.0,87450.0,0.0004]
[1764678883302,0.19596328,87451.0,87450.0,0.0004]
[1764678883504,0.21983328,87451.0,87450.0,0.0004]
[1764678884915,0.28235627,87451.0,87450.0,0.0004]
[1764678885291,0.38264387,87451.0,87450.0,0.0004]
[1764678885924,0.28235627,87451.0,87450.0,0.0004]
[1764678886763,0.28435627,87451.0,87450.0,0.0004]
[1764678887560,0.28922627,87451.0,87450.0,0.0004]
[1764678888005,0.29022627,87451.0,87450.0,0.0004]
[1764678888646,0.19431884,87451.0,87450.0,0.0004]
[1764678888782,0.42301834,87451.0,87450.0,0.00102543]
[1764678891093,0.53737215,87451.0,87450.0,0.00102543]
[1764678891609,0.53737215,87451.0,87440.0,0.0004]
[1764678891610,0.29124864,87441.0,87440.0,0.0004]
[1764678891813,2.32451864,87441.0,87440.0,0.0004]
[1764678892166,2.32451864,87441.0,87430.0,0.0004]
[1764678892167,0.22875181,87431.0,87430.0,0.0004]
[1764678892370,0.41029486,87431.0,87430.0,0.0004]
[1764678892532,0.45436267,87431.0,87430.0,0.0004]
[1764678892739,2.4725574,87431.0,87430.0,0.0004]
[1764678892943,2.80014245,87431.0,87430.0,0.0004]
[1764678893138,2.61430097,87421.0,87410.0,0.0004]
[1764678893363,2.67144097,87421.0,87410.0,0.0004]
[1764678893570,0.23597415,87411.0,87410.0,9e-05]
[1764678893754,0.25405415,87411.0,87410.0,9e-05]
[1764678894555,0.26924415,87411.0,87410.0,9e-05]
[1764678895011,0.27024415,87411.0,87410.0,9e-05]
[1764678895209,0.25116415,87411.0,87410.0,9e-05]
[1764678895423,0.01144138,87411.0,87410.0,9e-05]
[1764678895631,0.01144138,87411.0,87410.0,0.04094]
[1764678895833,0.01144138,87411.0,87410.0,0.26974677]
[1764678896046,0.01143876,87422.0,87417.0,0.01143942]
[1764678896241,0.02288027,87421.0,87417.0,0.01143942]
[1764678896447,0.01144138,87421.0,87418.0,0.01152]
[1764678896653,0.25165826,87421.0,87418.0,0.01152]
[1764678896871,0.25165926,87421.0,87418.0,0.01152]
[1764678897072,0.02288027,87421.0,87418.0,0.01152]
[1764678897250,0.25165849,87421.0,87418.0,0.01152]
[1764678897718,0.25165849,87421.0,87418.0,0.2403057]
[1764678897906,0.02288027,87421.0,87418.0,0.01152]
[1764678898076,0.25165972,87421.0,87418.0,0.01152]
[1764678898282,0.02288027,87421.0,87418.0,0.24030402]
[1764678898663,0.01143876,87422.0,87418.0,0.25274331]
[1764678898901,0.03438397,87423.0,87419.0,0.01143916]
[1764678899124,0.24021687,87421.0,87418.0,0.001]
[1764678899346,0.01143889,87421.0,87418.0,0.001]
[1764678899564,0.03438397,87423.0,87420.0,0.02770902]
[1764678899786,0.22876249,87427.0,87422.0,0.01627]
[1764678900006,0.01143955,87426.0,87422.0,0.2564841]
[1764678900238,0.08586479,87431.0,87427.0,0.01143811]
[1764678900457,0.09730238,87431.0,87427.0,0.02770811]
[1764678900672,0.08586479,87431.0,87430.0,0.01627]
[1764678900908,0.00011473,87431.0,87430.0,0.26960443]
[1764678903330,0.00011473,87431.0,87430.0,0.27260443]
[1764678903707,0.00011473,87431.0,87430.0,0.27123007]
[1764678903925,0.00011473,87431.0,87430.0,0.27523007]
[1764678905071,0.00011473,87431.0,87430.0,0.59823007]
[1764678906267,0.00011473,87431.0,87430.0,0.63259954]
[1764678910493,0.00011473,87431.0,87430.0,1.03259954]
[1764678911325,0.00011473,87431.0,87430.0,0.63259954]
[1764678916291,0.00011473,87431.0,87430.0,1.02859954]
[1764678916651,0.00111473,87431.0,87430.0,1.03559954]
[1764678917029,0.00111473,87431.0,87430.0,1.18259954]
[1764678917468,0.00111473,87431.0,87430.0,1.18359954]
[1764678933490,0.00111473,87431.0,87430.0,0.78359954]
[1764678933897,0.00111473,87431.0,87430.0,1.18359954]
[1764678935724,0.2286965,87453.0,87452.0,0.02546]
[1764678935725,0.07925553,87453.0,87452.0,0.02546]
[1764678935942,0.07925553,87453.0,87452.0,0.05013]
[1764678936523,0.24014218,87449.0,87446.0,0.01171]
[1764678936728,0.24014046,87449.0,87446.0,0.01171]
[1764678937079,0.24014046,87449.0,87447.0,0.02467]
[1764678937256,0.24014046,87449.0,87448.0,0.01559]
[1764678937608,0.24014046,87449.0,87448.0,0.04026]
[1764678937828,0.22870199,87451.0,87448.0,0.26896593]
[1764678938027,0.24013193,87452.0,87449.0,0.2287043]
[1764678938271,0.22870148,87451.0,87448.0,0.2804024]
[1764678938507,0.24013645,87451.0,87448.0,0.2804024]
[1764678938824,0.22870249,87450.0,87448.0,0.05169536]
[1764678939021,0.22870473,87449.0,87448.0,0.04026]
[1764678939540,0.22870473,87449.0,87448.0,0.04126]
[1764678939730,0.24013496,87451.0,87448.0,0.04026]
[1764678939975,0.24013496,87451.0,87449.0,0.02436]
[1764678940404,0.24013183,87452.0,87449.0,0.25306323]
[1764678940611,0.22870003,87451.0,87449.0,0.02436]
[1764678940809,0.22870211,87450.0,87449.0,0.02436]
[1764678941501,0.22870473,87449.0,87448.0,0.002]
[1764678941673,0.24506473,87449.0,87448.0,0.002]
[1764678941832,0.01143562,87446.0,87442.0,0.24040926]
[1764678942016,0.22872042,87443.0,87442.0,0.00025022]
[1764678943324,0.22872042,87443.0,87442.0,0.00325022]
[1764678943541,0.2287178,87444.0,87442.0,0.00325022]
[1764678943711,0.22872042,87443.0,87442.0,0.00325022]
[1764678944894,0.28008042,87443.0,87442.0,0.00325022]
[1764678945751,0.28008042,87443.0,87442.0,0.00025022]
[1764678945884,0.28008042,87443.0,87442.0,0.00125022]
[1764678945885,0.47139208,87443.0,87442.0,0.00125022]
[1764678946092,2.83266989,87443.0,87442.0,0.00125022]
[1764678946300,2.74273161,87443.0,87442.0,0.00125022]
[1764678946714,2.74273161,87443.0,87442.0,0.00025022]
[1764678947110,2.74373161,87443.0,87442.0,0.00025022]
[1764678947841,2.78200942,87443.0,87442.0,2.2e-07]
[1764678948095,0.22880415,87411.0,87410.0,9e-05]
[1764678948300,0.22880415,87411.0,87410.0,0.00047194]
[1764678948520,0.33091421,87411.0,87410.0,0.00047194]
[1764678948855,0.00937,87415.0,87410.0,0.00047194]
[1764678948856,0.24022758,87418.0,87410.0,0.01731324]
[1764678949014,0.24022758,87418.0,87410.0,0.02483194]
[1764678949015,0.01143994,87413.0,87410.0,0.02483194]
[1764678949227,0.24023886,87413.0,87412.0,0.01584]
[1764678949626,0.24023886,87413.0,87412.0,0.0402]
[1764678949837,0.22880415,87411.0,87410.0,0.00147194]
[1764678950036,0.22880415,87411.0,87410.0,0.00047194]
[1764678950194,0.24516415,87411.0,87410.0,0.00047194]
[1764678950401,0.22880415,87411.0,87410.0,0.00047194]
[1764678951760,0.22880415,87411.0,87410.0,0.00147194]
[1764678952099,0.08575006,87412.0,87410.0,0.00147194]
[1764678952325,0.31455263,87412.0,87411.0,0.0402]
[1764678952540,0.08575006,87412.0,87411.0,0.0402]
[1764678952751,0.31455159,87412.0,87411.0,0.0402]
[1764678952958,0.16308244,87412.0,87411.0,0.01584]
[1764678953172,0.22880415,87411.0,87410.0,0.00047194]
[1764678953614,0.26870415,87411.0,87410.0,0.00047194]
[1764678954879,0.22880415,87411.0,87410.0,0.00047194]
[1764678955109,0.01143981,87414.0,87410.0,0.00147194]
[1764678955413,0.08575006,87411.0,87410.0,0.00047194]
[1764678955636,0.01143916,87419.0,87413.0,0.01584]
[1764678955767,0.08575006,87416.0,87413.0,0.01584]
[1764678955978,0.01143942,87417.0,87413.0,0.24463875]
[1764678956292,0.22879368,87415.0,87413.0,0.0402]
[1764678956703,0.22879368,87415.0,87413.0,0.01584]
[1764678956704,0.2287963,87414.0,87413.0,0.01584]
[1764678957282,0.22880415,87411.0,87410.0,0.00047194]
[1764678957490,0.24024101,87413.0,87410.0,0.00047194]
[1764678957686,0.01143968,87415.0,87410.0,0.24071882]
[1764678957906,0.2402334,87415.0,87411.0,0.22880391]
[1764678958451,0.24023862,87414.0,87413.0,0.001]
[1764678958725,0.24023862,87414.0,87410.0,0.03627227]
[1764678958726,0.24024026,87413.0,87410.0,0.26507902]
[1764678958973,0.24024026,87413.0,87410.0,0.26607902]
[1764678959131,0.24024026,87413.0,87410.0,0.26507902]
[1764678959903,0.24024026,87413.0,87410.0,0.54943115]
[1764678960941,0.24024026,87413.0,87410.0,0.7782377]
[1764678961147,0.22880285,87412.0,87410.0,0.53754567]
[1764678961419,0.22880415,87411.0,87410.0,0.53754567]
[1764678961776,0.22880415,87411.0,87410.0,0.53854697]
[1764678962542,0.22880415,87411.0,87410.0,0.53754697]
[1764678962720,0.22880285,87412.0,87410.0,0.53754697]
[1764678963025,0.24024026,87413.0,87411.0,0.01584]
[1764678963224,0.45746594,87439.0,87411.0,0.01584]
[1764678963225,0.01143902,87420.0,87412.0,0.01584]
[1764678963472,0.22878527,87419.0,87413.0,0.25607682]
[1764678963654,0.01143955,87416.0,87413.0,0.01584]
[1764678964049,0.2287963,87414.0,87413.0,0.01584]
[1764678964821,0.2287963,87414.0,87410.0,0.547986]
[1764678964822,0.22880415,87411.0,87410.0,0.53654567]
[1764678966672,0.24519415,87411.0,87410.0,0.53654567]
[1764678966979,0.35532421,87411.0,87410.0,0.53654567]
[1764678967389,0.35532421,87411.0,87410.0,0.53854567]
[1764678967523,0.35532421,87411.0,87410.0,0.53654567]
[1764678967744,0.35532421,87411.0,87410.0,0.00047194]
[1764678968468,2.52935811,87411.0,87410.0,0.00047194]
[1764678968894,2.5422588,87411.0,87410.0,0.00147324]
[1764678970071,2.56681014,87411.0,87410.0,0.00147324]
[1764678970479,2.56781014,87411.0,87410.0,0.00147324]
[1764678970698,2.56681014,87411.0,87410.0,0.00147324]
[1764678970900,2.56781014,87411.0,87410.0,0.00147324]
[1764678971140,2.56881014,87411.0,87410.0,0.00147324]
[1764678971314,2.58693014,87411.0,87410.0,0.00147324]
[1764678971454,2.47541923,87411.0,87410.0,0.00147324]
[1764678972476,2.45729923,87411.0,87410.0,0.00147324]
[1764678972661,2.47541923,87411.0,87410.0,0.00147324]
[1764678973680,2.37561555,87411.0,87410.0,0.00147324]
[1764678973859,2.35749555,87411.0,87410.0,0.00147324]
[1764678974104,2.35106421,87411.0,87410.0,0.00147324]
[1764678974277,2.40004231,87411.0,87410.0,0.00147324]
[1764678974704,2.57779126,87411.0,87410.0,0.00147324]
[1764678975949,2.61606907,87411.0,87410.0,0.00147324]
[1764678976131,2.65713075,87411.0,87410.0,0.00147324]
[1764678976338,2.54190479,87411.0,87410.0,0.00147324]
[1764678977865,2.55480548,87411.0,87410.0,0.00147324]
[1764678978063,2.5137438,87411.0,87410.0,0.00147324]
[1764678979744,2.8367438,87411.0,87410.0,3.24e-06]
[1764678979913,2.29134285,87405.0,87404.0,0.0001]
[1764678980112,2.48621849,87405.0,87404.0,0.0001]
[1764678980316,2.51059849,87405.0,87404.0,0.0001]
[1764678980541,2.52349918,87405.0,87404.0,0.0001]
[1764678981354,0.01639,87391.0,87370.0,0.3234]
[1764678981572,0.01639,87391.0,87330.0,0.01152]
[1764678981573,0.01144898,87344.0,87320.0,0.01165213]
[1764678981748,0.0245981,87346.0,87337.0,0.0086]
[1764678981951,0.01144806,87351.0,87338.0,0.02276]
[1764678982124,0.24040658,87353.0,87350.0,0.0275]
[1764678982335,0.22896099,87352.0,87350.0,0.01152]
[1764678982705,0.22934429,87352.0,87350.0,0.01152]
[1764678983542,0.22934429,87352.0,87350.0,0.01252]
[1764678984194,0.22934429,87352.0,87350.0,0.001]
[1764678984195,0.01639,87351.0,87350.0,0.001]
[1764678984400,0.22934429,87352.0,87350.0,0.001]
[1764678985352,0.22934429,87352.0,87351.0,0.01598]